Cogmind - Beta 16 @@@ ROGUE MODE // 2026.01.27 @ 20:46:40 Player: Assis Result: Self-destructed Performance ------------- Evolutions (1) 500 Regions Visited (2) 400 Robots Destroyed (18) 90 Value Destroyed (158) 158 Prototype IDs (0) 0 Alien Tech Used (0) 0 Bonus (0) 0 TOTAL SCORE: 1148 Bonus ------- None Cogmind --------- Core Integrity 272/400 Matter 226/300 Energy 100/100 System Corruption 0% Temperature Cool (0) Movement Flying (40) Location -9/Materials Parts ------- > --- POWER (1) -------- (None) > --- PROPULSION (2) --- Flight Unit > --- UTILITY (4) ------ Structural Scanner Machine Analyzer > --- WEAPON (2) ------- Light Assault Rifle > --- INVENTORY (5) ---- Light Ion Engine Flight Unit Signal Interpreter Terrain Scan Processor Light Assault Rifle Peak State ------------ > --- POWER ------------ Light Ion Engine > --- PROPULSION ------- Flight Unit Flight Unit > --- UTILITY ---------- Structural Scanner Machine Analyzer Improved Terrain Scanner Seismic Detector > --- WEAPON ----------- Light Assault Rifle Light Assault Rifle > --- INVENTORY -------- Light Ion Engine Flight Unit Signal Interpreter Light Assault Rifle [Rating: 13] Favorites ----------- Power Light Ion Engine Engine Light Ion Engine Propulsion Flight Unit Leg Aluminum Leg Flight Unit Flight Unit Utility Improved Terrain Scanner Device Improved Terrain Scanner Processor Machine Analyzer Weapon Light Assault Rifle Energy Gun Medium Laser Ballistic Gun Light Assault Rifle Build | -11 -10 -9 ------- Run | Yrd Mat Mat Slots Evolved 2 | . . 2 Power . | . . . Propulsion . | . . . Utility 2 | . . 2 Weapon . | . . . Parts Attached 19 | 7 4 8 Power 3 | 1 1 1 Engine 3 | 1 1 1 Core . | . . . Reactor . | . . . Propulsion 6 | 2 2 2 Treads . | . . . Leg 2 | 2 . . Wheel . | . . . Hover . | . . . Flight 4 | . 2 2 Utility 4 | 2 . 2 Device 3 | 2 . 1 Storage . | . . . Processor 1 | . . 1 Hackware . | . . . Protection . | . . . Artifact . | . . . Weapon 6 | 2 1 3 Energy Gun 1 | 1 . . Energy Cannon . | . . . Ballistic Gun 5 | 1 1 3 Ballistic Cannon . | . . . Launcher . | . . . Special Weapon . | . . . Impact Weapon . | . . . Slashing Weapon . | . . . Piercing Weapon . | . . . Special Melee Weapon . | . . . Unidentified Prototypes . | . . . Parts Lost 6 | . . 6 Power 1 | . . 1 Propulsion 2 | . . 2 Utility 2 | . . 2 Weapon 1 | . . 1 Highest Loss Streak 5 | . . 5 To Critical Strikes . | . . . Average Backups 1 | . 1 4 Power . | . . 1 Propulsion . | . . . Utility . | . . 1 Weapon . | . . . Tool/Special . | . . . Unused Backups 3 | . . 3 Power . | . . . Propulsion 1 | . . 1 Utility 2 | . . 2 Weapon . | . . . Tool/Special . | . . . Average Slot Usage (%) 95 | . 100 89 Engine 12 | . 14 9 Leg 9 | . 17 . Flight 14 | . 10 19 Device 27 | . 28 26 Processor 5 | . . 11 Energy Gun 4 | . 9 . Ballistic Gun 20 | . 18 22 Peak Build Rating 13 | 9 9 13 Average Rating 9 | 4 9 12 On Entrance 6 | . 9 9 Avg Prop Armor Cover (%) . | . . . Naked Turns . | . . . Heaviest Build 9 | 9 9 8 Greatest Support 20 | 20 20 8 Greatest Overweight (x) 2 | 2 2 1 Average Overweight (x) . | . . . Largest Inventory Capacity 5 | 5 5 5 Average Capacity 5 | 5 5 5 Most Carried 5 | . 3 5 Average Carried 2 | . 1 4 Final Capacity 5 | 5 5 5 Final Carried 5 | . 3 5 Class Distribution -------------------- 55% | Scavenger-Mutant 44% | Mutant Dominant Class ---------------- Mutant | -10/Materials Scavenger-Mutant | -9/Materials Resources | -11 -10 -9 ----------- Run | Yrd Mat Mat Matter Collected 478 | 269 103 106 Remotely . | . . . Salvage Created 368 | 95 103 170 Parts 41 | 9 10 22 Haulers Intercepted 1 | . . 1 Recyclers Shooed . | . . . Parts Field Recycled . | . . . Retrieved Matter . | . . . Parts Self-Destructed . | . . . Prevented . | . . . Parts Restored . | . . . Kills | -11 -10 -9 ------- Run | Yrd Mat Mat Combat Hostiles Destroyed 9 | . 3 6 Guns 9 | . 3 6 Classes Destroyed 5 | 1 3 1 Builder 3 | . 1 2 Tunneler 4 | 4 . . Hauler 1 | . . 1 Mechanic 1 | . 1 . Swarmer 9 | . 3 6 Best Kill Streak 3 | 3 3 3 Combat Bots Only 3 | . 3 3 Max Kills in Single Turn 1 | 1 1 1 Gunslinging . | . . . Exploded . | . . . Melee . | . . . Uniques/NPCs Destroyed . | . . . Combat | -11 -10 -9 -------- Run | Yrd Mat Mat Hostile Shots Fired 97 | . 48 49 Missed 27 | . 11 16 Hits 70 | . 37 33 Projectile 70 | . 37 33 Critical Strikes 3 | . 1 2 Damage Taken 723 | . 307 416 Core 172 | . 44 128 Absorbed by Shields . | . . . Core Remaining (%) 91 | 100 82 . Volleys Fired 70 | 5 28 37 Largest 2 | 2 2 2 Hottest 70 | 70 70 40 Shots Fired 139 | 10 56 73 Gun 139 | 10 56 73 Cannon . | . . . Launcher . | . . . Special . | . . . Kinetic 116 | 5 38 73 Thermal 23 | 5 18 . Explosive . | . . . Electromagnetic . | . . . Robot Hit Streak 10 | 4 10 9 Robot Miss Streak 5 | 2 5 4 Penetration Max . | . . . Secondary Targets 2 | . 2 . Max Gunslinging Chain 1 | . 1 . Shots Hit Robots 84 | 6 32 46 Core Hits 27 | 5 6 16 Critical Kills . | . . . Critical Parts Destroyed . | . . . Critical Strikes 1 | . 1 . Burn 1 | . 1 . Melee Attacks . | . . . Impact . | . . . Slashing . | . . . Piercing . | . . . Sneak Attacks . | . . . Combat Hostiles . | . . . Follow-up Attacks . | . . . Damage Inflicted 835 | 82 364 389 Guns 830 | 77 364 389 Cannons . | . . . Explosions . | . . . Melee . | . . . Ramming 5 | 5 . . Kinetic 629 | 40 200 389 Thermal 201 | 37 164 . Explosive . | . . . Electromagnetic . | . . . Impact . | . . . Slashing . | . . . Piercing . | . . . Highest Corruption . | . . . Average Corruption . | . . . Corruption Purged . | . . . Corruption Blocked . | . . . Overload Shots . | . . . Overflow Damage . | . . . Projectiles . | . . . Explosions . | . . . Melee . | . . . Knockbacks . | . . . Impact . | . . . Kinetic . | . . . Secondary . | . . . Self-Inflicted Damage . | . . . Shots . | . . . Rammed 1 | . 1 . Targets Rammed 3 | 2 1 . Kicked 2 | 2 . . Crushed . | . . . Highest Temperature 162 | 18 162 29 Average Temperature 48 | 7 63 9 Received Heat Transfer 144 | . 18 126 Siege Activations . | . . . Martial Activations . | . . . Shielding Activations . | . . . Robots Disrupted . | . . . Combat Hostiles . | . . . Robots Corrupted . | . . . Combat Hostiles . | . . . Parts Fried . | . . . Impact Corruptions . | . . . Robots Melted . | . . . Combat Hostiles . | . . . Parts Melted . | . . . Heat Transferred 666 | 111 555 . Parts Sabotaged . | . . . Parts Stolen . | . . . Parts Stripped . | . . . Power Chain Reactions . | . . . Alert | -11 -10 -9 ------- Run | Yrd Mat Mat Maximum Alert Level . | . . . Low Security (%) 100 | 100 100 100 Level 1 . | . . . Level 2 . | . . . Level 3 . | . . . Level 4 . | . . . Level 5 . | . . . High Security . | . . . Max Security . | . . . Peak Influence 163 | 10 91 163 Initial 38 | . . 38 Average 54 | 2 35 103 Influence Increases 370 | 20 148 202 Destroy 0b10 Robot/C 180 | . 60 120 Destroy 0b10 Robot/NC 45 | 20 10 15 Destroy Leader 32 | . 10 22 Successful Hack 7 | . 7 . Disable Machine 15 | . 15 . Destroy Structure 1 | . 1 . Partial Spotted 15 | . 15 . Lose Combat Pursuer 75 | . 30 45 Influence Decreases 280 | 20 57 203 Entered New Map 53 | . . 53 Time Decay 167 | 20 57 90 Lost Part 60 | . . 60 Squads Dispatched 1 | . 1 . Investigation . | . . . Extermination . | . . . Reinforcement 1 | . 1 . Assault . | . . . Garrison . | . . . Intercept . | . . . Searches Triggered . | . . . Construction Impeded . | . . . Haulers Reinforced . | . . . Active Scanning Responses . | . . . Cargo Convoy Interrupts . | . . . Stealth | -11 -10 -9 --------- Run | Yrd Mat Mat Distress Signals 2 | . 2 . Communications Jammed . | . . . Distress Signals . | . . . Times Spotted 25 | . 13 12 Peak Tracking Total 5 | . 5 4 Tactical Retreats 3 | . 1 2 Traps | -11 -10 -9 ------- Run | Yrd Mat Mat Traps Triggered . | . . . Indirectly . | . . . Trap Hack Attempts . | . . . Triggered . | . . . Disarmed . | . . . Reprogrammed . | . . . Reused . | . . . Traps Extracted . | . . . Installed . | . . . Triggered . | . . . Machines | -11 -10 -9 ---------- Run | Yrd Mat Mat Machines Disabled 1 | . 1 . Max in Single Turn 1 | . 1 . Machines Repaired . | . . . Machines Dismantled . | . . . Machines Sabotaged . | . . . Overloaded Fab Kills . | . . . Hacking | -11 -10 -9 --------- Run | Yrd Mat Mat Machines Accessed 2 | . 1 1 Terminals 2 | . 1 1 Fabricators . | . . . Repair Stations . | . . . Recycling Units . | . . . Scanalyzers . | . . . Garrison Access . | . . . Total Hacks 4 | . 2 2 Successful 1 | . 1 . Failed 3 | . 1 2 Catastrophic 1 | . . 1 Database Lockouts . | . . . Manual 4 | . 2 2 Terminals 4 | . 2 2 Fabricators . | . . . Repair Stations . | . . . Recycling Units . | . . . Scanalyzers . | . . . Garrison Access . | . . . Terminal Hacks 1 | . 1 . Part Schematic 1 | . 1 . Fabricator Hacks . | . . . Repair Station Hacks . | . . . Recycling Unit Hacks . | . . . Scanalyzer . | . . . Garrison Access Hacks . | . . . Unauthorized Hacks . | . . . Terminals . | . . . Fabricators . | . . . Repair Stations . | . . . Recycling Units . | . . . Scanalyzers . | . . . Garrison Access . | . . . Data Cores Recovered . | . . . Used . | . . . Hacking Detections 1 | . 1 . Full Trace Events . | . . . Feedback Events . | . . . Feedback Blocked . | . . . Robot Schematics Acquired . | . . . Robots Built . | . . . Authchips . | . . . Time . | . . . Total Robot Build Rating . | . . . Part Schematics Acquired 1 | . 1 . Parts Built . | . . . Authchips . | . . . Time . | . . . Total Part Build Rating . | . . . Part Studies Acquired . | . . . Parts Repaired . | . . . Time . | . . . Parts Recycled . | . . . Recycled Matter . | . . . Retrieved Matter . | . . . Retrieved Components . | . . . Parts Scanalyzed . | . . . Part Schematics Acquired . | . . . Parts Damaged . | . . . Bothacking | -11 -10 -9 ------------ Run | Yrd Mat Mat Used RIF Installer . | . . . Robots Hacked . | . . . Non-combat . | . . . Combat . | . . . Robot Hacks Applied . | . . . Relay Couplers Released . | . . . Fabnet Peak Effective % . | . . . Robots Rewired . | . . . Allies Hacked . | . . . Hacks Repelled . | . . . Allies | -11 -10 -9 -------- Run | Yrd Mat Mat Total Allies . | . . . Largest Group . | . . . Highest-Rated Group . | . . . Highest-Rated Ally . | . . . Total Orders . | . . . Ally Attacks . | . . . Total Damage . | . . . Kills . | . . . Allies Corrupted . | . . . Allies Melted . | . . . Intel | -11 -10 -9 ------- Run | Yrd Mat Mat Active Infowar (turns) 427 | 16 219 192 Terrain 417 | 16 219 182 Structural 101 | . . 101 Seismic 417 | 13 219 185 Machine Analysis 192 | . . 192 Robot Analysis Total . | . . . Derelict Logs Recovered . | . . . Drone Launches . | . . . Drone Recoveries . | . . . Exploration | -11 -10 -9 ------------- Run | Yrd Mat Mat Turns Passed 514 | 103 219 192 Spaces Moved 436 | 64 185 187 Core 16 | 16 . . Treads . | . . . Legs 110 | 48 62 . Wheels . | . . . Hover . | . . . Flight 310 | . 123 187 Fastest Speed 37 | 50 37 37 Average Speed 61 | 111 68 37 Slowest Speed 210 | 150 210 120 Overloaded Moves . | . . . Propulsion Burnouts . | . . . Robots Hopped 2 | . 1 1 Potential Cave-ins . | . . . Cave-ins Triggered . | . . . Exploration Rate (%) 22 | 5 36 25 Regions Visited 2 Branch Regions . Pre-discovered Areas . | . . . Known Exits Taken . | . . . Unknown Exits Taken 2 | 1 1 . Scrap Searched . | . . . Spaces Dug . | . . . Terrain Destroyed . | . . . Melee . | . . . Projectile . | . . . AOE . | . . . Terrain Rammed . | . . . Walls Destroyed . | . . . Machines Disabled . | . . . Actions | -11 -10 -9 --------- Run | Yrd Mat Mat Total 546 | 81 218 247 Wait 12 | 4 . 8 Move 431 | 64 182 185 Hop 2 | . 1 1 Pick Up 4 | . 2 2 Fast Attach 9 | 7 . 2 Attach 1 | . . 1 Detach . | . . . Swap 10 | . 4 6 Drop 5 | . . 5 Fire 70 | 5 28 37 Melee . | . . . Ram 1 | . 1 . Kick 1 | 1 . . Crush . | . . . Escape Stasis . | . . . Rewire . | . . . Trap . | . . . Miscellaneous . | . . . Route ------- -11/Scrapyard -10/Materials -9/Materials (discovered 1 exit: [*Mat]) History --------- Turn | Location | Event 14 | -11/Scrapyard | Discovered new exit (range 16) 104 | -11/Scrapyard | Entered Materials 321 | -10/Materials | Discovered new exit (range 8) 323 | -10/Materials | Entered another Materials area 323 | -9/Materials | Evolved 2 slots: Utility x2 418 | -9/Materials | Discovered new exit (range 11) 515 | -9/Materials | Self-destructed Last Messages --------------- 00472_ U-05 Engineer works on Pressure Siphon. 00475_ K-01 Serf collects debris. 00483_ Acquired 13 matter. 00484_ >> Machine Analyzer network decryption results: 00484_ Fusion Modulator x1 00484_ Recycling Unit x1 00486_ K-01 Serf collects debris. 00495_ A-02 Transporter destroyed. 00496_ Flight Unit destroyed. 00497_ K-01 Serf collects debris. 00499_ Lgt. Ion Engine destroyed. 00501_ K-01 Serf collects debris. 00505_ Imp. Terrain Scanner destroyed. 00506_ K-01 Serf collects debris. 00508_ Seismic Detector destroyed. 00508_ Critical hit (Burn: +37). 00509_ K-01 Serf collects debris. 00511_ Critical hit (Burn: +37). 00511_ Lgt. Assault Rifle destroyed. 00514_ K-01 Serf cleans the Processing Tank. Map ----- +----------------------------------------------------+ | ?????????????????????????????????????????????????? | | ?????????????????????????????????????????????????? | | ?????????????????????????????????????????????????? | | ?????????????????????????????????????????????????? | | ?????????????????????????????????????????????????? | | ?????????????????????????????????????????????????? | | ?????????????????????????????????????????????????? | | ?????????????????????????????????????????????????? | | ?????????????????????????????????????????????????? | | ?????????????????????????????????????????????????? | | ?????????????????????????????????????????????????? | | ??????????"""????????????????????????????????????? | | ??????????"Y?????????????????????????????????????? | | ??????????"""??????????????????#???????????T?????? | | ?????????????????????? ??????????????????????????? | | ????????????"""??????????????????????????????????? | | ????????????"""???#??????????????????????????????? | | ????????????"""??????????????????????"""?????????? | | ??????????????????????????? ??????###"R"## ##???? | | ???????????????????????????????##?###" "## ##???? | | ?????????????????????????????????? T ##???? | | ?????????????????????????? ???????? ##?#?? | | ?????????????????### ? ##???? | | ????????????????#####k############## """ ###??? | | ????????????????### !!%![ ###### "" ###??? | | ????????????????## k==!@ ##!! "" ##??? | | ????????????????### """"" ##!! "" ##??? | | ????????????????### """"" ##== ????? | | ?????????????????## """""YY ##== ####? | | ?????????????????## ##** ####+######? | | ?????????????????## ##** # ##? | | ?????????????????##+####+########### # ##? | | ?????????????????## ### + + [+ ##? | | ?????????#???????????## # ### # ##? | | ????????????#????????## # ### # = ##? | | ?????????????????????## # ### # ##? | | ?????????????????????## # ![ ### # ### | | ??????????????????? ? # ![ ### # ##? | | ????????????????????? + % ### # ##? | | ?????????????????? # ""### #####/###### | | ?????????????? ???## # T"### ##### ###### | | ??????????????????## # ""# | | ??????????????????"#!!!!!!# # | | ??????????????????"#!!!!!!### ##### * | | ?????????????????? #######################%==##### | | ??????????????????"#############?#########! # | | ????????????????????????????????????????## !# ??? | | ???????????????????????????????#??######## + ??? | | ???????????????????????????#??????# # ??? | | ????????????????????????????####### # ??? | +----------------------------------------------------+ Best States ------------- Heat Dissipation 28 Energy Generation 10 Energy Capacity 125 Matter Stores 291 Matter Capacity 300 Sight Range 16 Terrain Scan Range 16 Terrain Scan Density 10 Evasion (%) 62 Item Schematics ----------------- Sensor Array | -10/Materials | Hacked Robot Schematics ------------------ None Fabricated ------------ Nothing Repaired ---------- Nothing Studied --------- None Alien Tech Used ----------------- None Achievements -------------- None Challenges ------------ None Game ------ Seed UltimateThrowingDrive Manual? 0 Play Time 00:12:20 Cumulative 24.9 hours Start 2026.01.27 @ 19:33:21 End 2026.01.27 @ 20:46:40 Sessions 1 Manual Loads 0 Difficulty Rogue Special Mode None Game No. 49 Rogue 49 Adventurer 0 Explorer 0 Win Type - Total 0 Types 0/0/0/0/0/0/0/0/0/0 Lore% 13 Gallery% 22 Achievement% 18 Wizard Run 0 Options --------- Layout 0 ASCII 0 Keyboard 1 Movement Arrows Keybinds 0 Fullscreen 1 Font 18/Smallcaps Map View 38x25 Zoom Use 69% Tactical HUD 1 Map Filters NONE Filters NONE Steam 1 RUN: f416a906-2597-46b3-8976-b68dc6cd7360